bitfinex-derivatives/quotes_BNBF0:USTF0_20250617
["timestamp","ask_amount","ask_price","bid_price","bid_amount"]
[1750141206642,0.26414063,659.17,658.21,1.12634437]
[1750141206838,0.26414063,659.17,658.22,1.43019414]
[1750141207042,0.26414063,659.17,658.23,0.30384516]
[1750141207338,0.26414063,659.17,658.24,1.12634437]
[1750141207543,0.26414063,659.17,658.25,0.30383592]
[1750141211544,1.13351342,659.3,658.25,0.30383592]
[1750141211742,0.26409453,659.24,658.25,0.30383592]
[1750141216949,0.26409453,659.24,658.26,0.817]
[1750141224658,0.26409453,659.24,658.27,0.30382669]
[1750141230456,0.26409453,659.24,658.28,0.84]
[1750141230658,0.26409453,659.24,658.28,1.14382208]
[1750141232763,0.26409453,659.24,658.29,1.156]
[1750141233865,1.12538684,659.18,658.29,1.156]
[1750141234659,1.12538684,659.12,658.29,1.156]
[1750141234859,1.12538684,659.09,658.29,1.156]
[1750141235463,1.12538684,659.1,658.29,1.156]
[1750141235663,1.12538684,659.08,658.29,1.156]
[1750141236064,1.12538684,659.1,658.29,1.156]
[1750141236264,1.12538684,658.97,658.29,1.156]
[1750141236464,1.12538684,658.95,658.29,1.156]
[1750141236664,1.12538684,658.93,658.29,1.156]
[1750141236868,1.12538684,658.94,658.29,1.156]
[1750141237060,1.12538684,658.93,658.29,1.156]
[1750141237460,1.12538684,658.89,658.29,1.156]
[1750141238360,1.12538684,658.88,658.29,1.156]
[1750141239565,1.12538684,658.89,658.29,1.156]
[1750141240467,1.12538684,658.88,658.29,1.156]
[1750141241563,1.12538684,658.87,658.29,1.156]
[1750141241964,1.12538684,658.88,658.29,1.156]
[1750141242169,1.12538684,658.87,658.29,1.156]
[1750141242972,1.12538684,658.86,658.29,1.156]
[1750141243270,1.12538684,658.87,658.29,1.156]
[1750141243471,1.12538684,658.86,658.29,1.156]
[1750141244167,1.12538684,658.86,658.3,0.836]
[1750141244670,1.12538684,658.85,658.3,0.836]
[1750141245772,0.49882138,658.96,658.3,0.836]
[1750141245967,1.12538684,659.1,658.3,0.836]
[1750141246769,1.12538684,659.11,658.3,0.836]
[1750141247071,1.12538684,659.15,658.3,0.836]
[1750141247566,0.26409453,659.24,658.3,0.836]
[1750141247567,1.12538684,659.14,658.3,0.836]
[1750141247766,1.12538684,659.15,658.3,0.836]
[1750141248670,1.12538684,659.14,658.3,0.836]
[1750141248872,1.12538684,659.13,658.3,0.836]
[1750141249269,1.12538684,659.1,658.3,0.836]
[1750141249472,1.12538684,659.09,658.3,0.836]
[1750141249772,1.12538684,659.09,658.31,1.023]
[1750141249968,1.12538684,659.11,658.31,1.023]
[1750141250369,1.12538684,659.11,658.32,0.757]
[1750141250569,0.26409453,659.24,658.32,0.757]
[1750141250570,1.12538684,659.1,658.32,0.757]
[1750141251574,1.12538684,659.09,658.32,0.757]
[1750141252375,1.12538684,659.08,658.32,0.757]
[1750141252569,1.77741176,659.24,658.32,0.757]
[1750141252570,1.12538684,659.07,658.32,0.757]
[1750141253678,1.12538684,659.06,658.32,0.757]
[1750141254578,1.12538684,659.05,658.32,0.757]
[1750141255673,1.12538684,659.04,658.32,0.757]
[1750141256375,1.12538684,659.05,658.32,0.757]
[1750141256574,1.12538684,659.03,658.32,0.757]
[1750141256980,1.12538684,659.03,658.33,1.024]
[1750141257774,1.12538684,659.02,658.33,1.024]
[1750141258474,1.12538684,659.01,658.33,1.024]
[1750141258678,1.12538684,658.85,658.33,1.024]
[1750141258977,1.12538684,658.8,658.33,1.024]
[1750141259180,1.12538684,658.79,658.33,1.024]
[1750141259574,1.12538684,658.77,658.33,1.024]
[1750141259980,1.12538684,658.75,658.33,1.024]
[1750141260882,1.12538684,658.75,658.34,1.111]
[1750141261088,1.12538684,658.68,658.34,1.111]
[1750141261285,1.12538684,658.69,658.34,1.111]
[1750141261682,1.12538684,658.7,658.34,1.111]
[1750141261982,1.12538684,658.65,658.34,1.111]
[1750141262388,1.12538684,658.63,658.34,1.111]
[1750141263386,1.12538684,658.64,658.34,1.111]
[1750141264292,1.12538684,658.65,658.34,1.111]
[1750141264488,1.12538684,658.66,658.34,1.111]
[1750141264987,1.12538684,658.65,658.34,1.111]
[1750141265491,1.12538684,658.66,658.34,1.111]
[1750141266494,1.12538684,658.67,658.34,1.111]
[1750141268293,1.51331723,658.83,658.34,1.111]
[1750141268294,1.12538684,658.68,658.34,1.111]
[1750141268997,1.12538684,658.63,658.35,1.204]
[1750141269295,1.12538684,658.64,658.35,1.204]
[1750141270395,0.50013695,658.77,658.35,1.204]
[1750141270396,1.12538684,658.65,658.35,1.204]
[1750141271096,1.12538684,658.66,658.35,1.204]
[1750141271396,1.12538684,658.67,658.35,1.204]
[1750141271896,1.12538684,658.66,658.35,1.204]
[1750141272592,1.51331723,658.82,658.35,1.204]
[1750141272593,1.12538684,658.67,658.35,1.204]
[1750141274496,0.49994728,658.81,658.35,1.204]
[1750141274497,1.12538684,658.68,658.35,1.204]
[1750141274694,1.12538684,658.67,658.35,1.204]
[1750141275498,1.12538684,658.68,658.35,1.204]
[1750141278401,1.12538684,658.69,658.35,1.204]
[1750141279002,1.12538684,658.67,658.35,1.204]
[1750141281004,1.12538684,658.65,658.35,1.204]
[1750141281903,0.49949797,658.76,658.35,1.204]
[1750141281904,1.12538684,658.66,658.35,1.204]
[1750141282602,1.12538684,658.65,658.35,1.204]
[1750141283002,1.12538684,658.65,658.33,1.024]
[1750141283501,1.12538684,658.69,658.33,1.024]
[1750141283705,1.12538684,658.72,658.33,1.024]
[1750141284599,1.12538684,658.71,658.33,1.024]
[1750141285602,1.12538684,658.71,658.34,1.406]
[1750141286508,1.12538684,658.7,658.35,0.862]
[1750141287408,1.12538684,658.69,658.35,0.862]
[1750141287608,1.12538684,658.7,658.35,0.862]
[1750141288310,0.49952587,658.88,658.35,0.862]
[1750141288809,1.12864091,658.89,658.35,0.862]
[1750141289009,1.12864091,658.9,658.35,0.862]
[1750141289209,1.12864091,658.98,658.35,0.862]
[1750141289410,1.12864091,658.97,658.35,0.862]
[1750141290507,1.12864091,658.96,658.35,0.862]
[1750141291813,0.50001554,659.11,658.35,0.862]
[1750141292009,1.12931835,658.97,658.35,0.862]
[1750141292209,1.12931835,658.96,658.35,0.862]
[1750141292408,1.12931835,658.95,658.36,0.865]
[1750141292913,1.12931835,658.94,658.36,0.865]
[1750141293415,1.12931835,658.93,658.37,0.919]
[1750141293910,1.12931835,658.94,658.37,0.919]
[1750141294411,1.12931835,658.96,658.37,0.919]
[1750141295612,1.12931835,658.98,658.37,0.919]
[1750141295813,1.12931835,659.01,658.37,0.919]
[1750141296016,1.12931835,659.02,658.37,0.919]
[1750141296415,1.12931835,659.04,658.37,0.919]
[1750141297214,1.12931835,659.05,658.37,0.919]
[1750141298522,1.12931835,659.06,658.37,0.919]
[1750141298924,1.12931835,659.07,658.37,0.919]
[1750141299625,1.12931835,659.06,658.37,0.919]
[1750141301423,0.26409453,659.24,658.37,0.919]
[1750141301424,1.12931835,659.07,658.37,0.919]
[1750141302123,1.12931835,659.04,658.37,0.919]
[1750141303023,1.12931835,659.05,658.37,0.919]
[1750141303927,1.12931835,659.06,658.37,0.919]
[1750141304326,1.12931835,659.02,658.38,1.076]
[1750141305528,1.12931835,658.99,658.38,1.076]
[1750141305727,1.12931835,658.89,658.38,1.076]
[1750141306526,1.12931835,658.87,658.38,1.076]
[1750141307229,1.12931835,658.9,658.38,1.076]
[1750141308730,1.12931835,658.85,658.38,1.076]
[1750141308931,1.12931835,658.86,658.38,1.076]
[1750141309331,1.12931835,658.9,658.38,1.076]
[1750141309527,1.12931835,658.87,658.38,1.076]
[1750141310428,1.12931835,658.86,658.38,1.076]
[1750141312337,1.12931835,658.85,658.38,1.076]
[1750141314238,1.12931835,658.86,658.38,1.076]
[1750141315536,1.12931835,658.85,658.38,1.076]
[1750141315736,1.13024106,658.85,658.38,1.076]
[1750141316638,1.13024106,658.84,658.38,1.076]
[1750141316835,1.13024106,658.85,658.38,1.076]
[1750141317237,1.13024106,658.84,658.38,1.076]
[1750141318541,2.0138824,659.0,658.38,1.076]
[1750141318742,1.13073136,658.84,658.38,1.076]
[1750141319242,1.13073136,658.81,658.38,1.076]
[1750141319845,1.13073136,658.81,658.39,1.165]
[1750141320441,1.13072124,658.81,658.39,1.165]
[1750141321542,1.13072124,658.82,658.39,1.165]
[1750141322347,1.13072124,658.81,658.39,1.165]
[1750141324046,1.13072124,658.8,658.39,1.165]
[1750141324744,1.13072124,658.81,658.39,1.165]
[1750141325246,1.13072124,658.8,658.39,1.165]
[1750141327348,1.13072124,658.84,658.39,1.165]
[1750141328149,1.13072124,658.91,658.39,1.165]
[1750141328352,1.13072124,658.9,658.39,1.165]
[1750141328552,1.13072124,658.91,658.39,1.165]
[1750141329349,1.13072124,658.88,658.4,0.843]
[1750141330155,1.13072124,658.89,658.4,0.843]
[1750141331152,1.13072124,658.9,658.4,0.843]
[1750141331457,1.13072124,658.89,658.4,0.843]
[1750141332455,1.13072124,658.87,658.4,0.843]
[1750141333461,1.13072124,658.86,658.4,0.843]
[1750141334756,1.13072124,658.89,658.4,0.843]
[1750141334960,1.13072124,658.9,658.4,0.843]
[1750141335762,1.13072124,658.9,658.41,0.983]
[1750141335962,1.13072124,658.92,658.41,0.983]
[1750141336463,1.13072124,658.91,658.41,0.983]
[1750141338362,1.13072124,658.9,658.41,0.983]
[1750141339163,1.13072124,658.89,658.41,0.983]
[1750141340462,1.13072124,658.88,658.41,0.983]
[1750141341764,1.13072124,658.88,658.42,1.074]
[1750141342164,1.13072124,658.89,658.42,1.074]
[1750141342460,1.13072124,658.88,658.42,1.074]
[1750141342962,1.13072124,658.87,658.42,1.074]
[1750141343363,0.26409453,659.24,658.42,1.074]
[1750141343364,1.13072124,658.86,658.42,1.074]
[1750141343665,1.1331496,658.87,658.42,1.074]
[1750141344365,0.5012446,658.99,658.42,1.074]
[1750141344366,1.1331496,658.89,658.43,1.399]
[1750141345369,1.1331496,658.88,658.43,1.399]
[1750141345769,1.1331496,658.84,658.43,1.399]
[1750141346470,1.1331496,658.83,658.43,1.399]
[1750141347371,1.1331496,658.82,658.43,1.399]
[1750141347969,1.1331496,658.81,658.43,1.399]
[1750141348273,1.1331496,658.82,658.43,1.399]
[1750141348472,1.1331496,658.81,658.43,1.399]
[1750141350769,1.1331496,658.82,658.43,1.399]
[1750141350968,1.1331496,658.83,658.43,1.399]
[1750141354577,1.1331496,658.82,658.43,1.399]
[1750141355675,1.1331496,658.83,658.43,1.399]
[1750141356273,1.1331496,658.83,658.44,0.893]
[1750141357372,1.1331496,658.82,658.44,0.893]
[1750141358074,1.1331496,658.83,658.44,0.893]
[1750141359976,1.1331496,658.82,658.44,0.893]
[1750141360879,1.1331496,658.81,658.44,0.893]
[1750141361576,1.1331496,658.82,658.44,0.893]
[1750141361780,1.1331496,658.81,658.44,0.893]
[1750141363281,1.1331496,658.81,658.45,1.182]
[1750141364881,1.1331496,658.82,658.45,1.182]
[1750141366682,1.1331496,658.83,658.45,1.182]
[1750141367684,1.1331496,658.83,658.46,2.254]
[1750141368180,1.1331496,658.88,658.46,2.254]
[1750141369283,1.1331496,658.8,658.46,2.254]
[1750141369483,1.1331496,658.78,658.46,2.254]
[1750141369682,1.1331496,658.76,658.46,2.254]
[1750141369882,1.1331496,658.74,658.46,2.254]
[1750141376386,1.1331496,658.73,658.46,2.254]
[1750141376987,1.1331496,658.74,658.46,2.254]
[1750141377487,1.1331496,658.73,658.46,2.254]
[1750141381298,1.1331496,658.73,658.47,0.98]
[1750141381793,1.1331496,658.73,658.47,1.815]
[1750141382096,1.1331496,658.72,658.47,1.815]
[1750141384501,1.1331496,658.71,658.47,1.815]
[1750141387002,1.1331496,658.7,658.47,1.815]
[1750141387502,1.1331496,658.72,658.47,1.815]
[1750141388403,1.1331496,658.71,658.47,1.815]
[1750141388904,1.1331496,658.72,658.47,1.815]
[1750141389800,1.1331496,658.74,658.47,1.815]
[1750141390602,1.1331496,658.73,658.47,1.815]
[1750141390802,1.1331496,658.74,658.47,1.815]
[1750141391401,1.1331496,658.73,658.47,1.815]
[1750141393303,1.1331496,658.72,658.47,1.815]
[1750141393906,1.1331496,658.73,658.47,1.815]
[1750141394308,1.1331496,658.72,658.47,1.815]
[1750141394908,1.1331496,658.72,658.47,0.98]
[1750141396303,1.1331496,658.73,658.47,0.98]
[1750141397106,1.1331496,658.72,658.47,0.98]
[1750141398408,1.1331496,658.73,658.47,0.98]
[1750141398607,1.1331496,658.72,658.47,0.98]
[1750141399614,1.1331496,658.73,658.47,0.98]
[1750141399810,1.1331496,658.72,658.47,0.98]
[1750141400013,1.1331496,658.73,658.47,0.98]
[1750141400710,1.1331496,658.72,658.47,0.98]
[1750141403120,1.1331496,658.73,658.47,0.98]
[1750141403620,1.13732723,658.73,658.47,0.98]
[1750141405721,1.13732723,658.8,658.47,0.98]
[1750141406221,1.13732723,658.79,658.47,0.98]
[1750141406622,1.13732723,658.8,658.47,0.98]
[1750141407322,1.13732723,658.79,658.47,0.98]
[1750141409320,1.13732723,658.78,658.47,0.98]
[1750141409518,1.13732723,658.79,658.47,0.98]
[1750141410920,1.13732723,658.79,658.48,0.816]
[1750141412625,1.13732723,658.78,658.48,0.816]
[1750141413227,1.13732723,658.77,658.48,0.816]
[1750141413425,1.13732723,658.74,658.48,0.816]
[1750141414029,1.13732723,658.73,658.48,0.816]
[1750141415233,1.13732723,658.73,658.49,1.102]
[1750141415835,1.13732723,658.74,658.49,1.102]
[1750141416334,1.13732723,658.75,658.49,1.102]
[1750141416829,1.13732723,658.74,658.49,1.102]
[1750141419333,1.13732723,658.73,658.49,1.102]
[1750141423236,1.13732723,658.74,658.49,1.102]
[1750141423437,1.13732723,658.73,658.49,1.102]
[1750141424040,1.13732723,658.74,658.49,1.102]
[1750141425335,1.13732723,658.73,658.49,1.102]
[1750141427941,1.13732723,658.72,658.49,1.102]
[1750141433742,1.13732723,658.71,658.49,1.102]
[1750141436151,1.13732723,658.7,658.47,2.07]
[1750141437149,1.13732723,658.73,658.47,2.07]
[1750141438849,1.13732723,658.73,658.48,1.207]
[1750141439354,1.13732723,658.72,658.48,1.207]
[1750141440254,1.13732723,658.65,658.48,1.207]
[1750141440552,1.13732723,658.59,658.48,1.207]
[1750141440749,1.13732723,658.58,658.48,1.207]
[1750141440954,1.13732723,658.56,658.48,1.207]
[1750141441154,1.13732723,658.54,658.48,1.207]
[1750141441650,1.13732723,658.56,658.48,1.207]
[1750141442455,1.13732723,658.57,658.48,1.207]
[1750141443350,1.13732723,658.58,658.48,1.207]
[1750141443551,1.13732723,658.59,658.48,1.207]
[1750141444056,1.13732723,658.62,658.48,1.207]
[1750141444855,1.13732723,658.63,658.48,1.207]
[1750141446651,1.13732723,658.64,658.48,1.207]
[1750141446854,1.13732723,658.66,658.48,1.207]
[1750141447655,1.13732723,658.67,658.48,1.207]
[1750141448361,1.13732723,658.7,658.48,1.207]
[1750141448555,1.13732723,658.75,658.48,1.207]
[1750141448760,1.13732723,658.82,658.48,1.207]
[1750141449160,1.13732723,658.82,658.49,1.173]
[1750141449558,1.13732723,658.83,658.49,1.173]
[1750141450963,1.13732723,658.85,658.49,1.173]
[1750141451463,1.13732723,658.86,658.49,1.173]
[1750141451660,1.13732723,658.87,658.49,1.173]
[1750141452068,1.13732723,658.88,658.49,1.173]
[1750141453163,1.13732723,658.89,658.49,1.173]
[1750141454062,1.13732723,658.81,658.49,1.173]
[1750141454466,1.13732723,658.8,658.49,1.173]
[1750141454763,1.13732723,658.79,658.49,1.173]
[1750141455367,1.13732723,658.78,658.49,1.173]
[1750141455668,1.13732723,658.76,658.49,1.173]
[1750141457768,1.13732723,658.69,658.49,1.173]
[1750141458471,1.13732723,658.68,658.49,1.173]
[1750141458668,1.13732723,658.63,658.49,1.173]
[1750141459264,2.26997585,658.87,658.49,1.173]
[1750141459265,1.13732723,658.62,658.49,1.173]
[1750141459470,1.13732723,658.65,658.49,1.173]
[1750141459671,1.13732723,658.66,658.49,1.173]
[1750141459967,1.13732723,658.63,658.49,1.173]
[1750141460570,1.13732723,658.61,658.49,1.173]
[1750141461371,1.13732723,658.6,658.49,1.173]
[1750141461866,1.13732723,658.62,658.49,1.173]
[1750141462873,1.13732723,658.63,658.49,1.173]
[1750141463268,1.13732723,658.63,658.48,1.207]
[1750141463669,1.13516589,658.63,658.48,1.207]
[1750141465571,1.13516589,658.64,658.48,1.207]
[1750141465972,1.13516589,658.64,658.49,1.144]
[1750141467378,1.13516589,658.66,658.49,1.144]
[1750141468776,1.13516589,658.65,658.5,0.953]
[1750141469173,1.13516589,658.67,658.5,0.953]
[1750141469372,1.13516589,658.68,658.5,0.953]
[1750141469577,1.13516589,658.71,658.5,0.953]
[1750141469773,1.13516589,658.7,658.5,0.953]
[1750141470277,1.13516589,658.71,658.5,0.953]
[1750141470477,1.13516589,658.72,658.5,0.953]
[1750141471477,2.26997585,659.04,658.5,0.953]
[1750141471478,1.13516589,658.69,658.5,0.953]
[1750141471879,1.13516589,658.7,658.5,0.953]
[1750141472579,1.13516589,658.69,658.5,0.953]
[1750141473476,1.13516589,658.7,658.5,0.953]
[1750141473777,1.13471156,658.7,658.5,0.953]
[1750141474379,1.13471156,658.69,658.5,0.953]
[1750141479481,1.13471156,658.7,658.5,0.953]
[1750141479683,1.13471156,658.68,658.5,0.953]
[1750141479886,1.13471156,658.66,658.5,0.953]
[1750141480188,1.13471156,658.6,658.5,0.953]
[1750141480584,1.13471156,658.53,658.5,0.953]
[1750141480785,1.13471156,658.54,658.5,0.953]
[1750141481488,1.13471156,658.53,658.5,0.953]
[1750141481689,1.13471156,658.55,658.5,0.953]
[1750141481889,1.13471156,658.56,658.5,0.953]
[1750141482089,1.13471156,658.57,658.5,0.953]
[1750141483889,1.13471156,658.6,658.5,0.953]
[1750141484090,1.13471156,658.63,658.5,0.953]
[1750141484289,1.13471156,658.62,658.5,0.953]
[1750141484485,1.13471156,658.63,658.5,0.953]
[1750141485892,1.13471156,658.63,658.44,1.022]
[1750141487893,1.13471156,658.63,658.45,0.887]
[1750141488790,1.13471156,658.62,658.45,0.887]
[1750141489195,1.13471156,658.61,658.45,0.887]
[1750141491996,1.13471156,658.57,658.45,0.887]
[1750141492200,1.13471156,658.56,658.45,0.887]
[1750141492599,1.13471156,658.54,658.45,0.887]
[1750141493600,1.13471156,658.53,658.45,0.887]
[1750141493801,1.13471156,658.52,658.45,0.887]
[1750141495402,1.13471156,658.54,658.45,0.887]
[1750141496802,1.13471156,658.58,658.45,0.887]
[1750141496998,1.13471156,658.57,658.45,0.887]
[1750141497298,1.13471156,658.58,658.45,0.887]
[1750141497502,1.13471156,658.57,658.45,0.887]
[1750141497702,1.13471156,658.58,658.45,0.887]
[1750141499304,1.13471156,658.6,658.45,0.887]
[1750141499604,1.13471156,658.59,658.45,0.887]
[1750141505213,1.13471156,658.58,658.45,0.887]
[1750141509411,1.13471156,658.55,658.45,0.887]
[1750141509614,1.13471156,658.55,658.45,1.961]
[1750141510111,1.13471156,658.54,658.45,1.961]
[1750141510314,1.13471156,658.55,658.45,1.961]
[1750141510510,1.13471156,658.54,658.45,1.961]
[1750141511417,1.13471156,658.53,658.45,1.961]
[1750141512618,1.13471156,658.52,658.45,1.961]
[1750141513518,1.13471156,658.51,658.45,1.961]
[1750141515219,1.13471156,658.5,658.45,1.961]
[1750141519524,1.13471156,658.49,658.45,1.961]
[1750141519924,1.13471156,658.5,658.45,1.961]
[1750141521022,1.13471156,658.53,658.45,1.961]
[1750141521521,1.13471156,658.54,658.45,1.961]
[1750141522226,1.13471156,658.54,658.45,1.074]
[1750141522825,1.13471156,658.53,658.45,1.074]
[1750141523925,1.13686557,658.53,658.45,1.074]
[1750141530826,1.13686557,658.51,658.45,1.074]
[1750141531132,1.13686557,658.5,658.45,1.074]
[1750141531533,1.13686557,658.49,658.45,1.074]
[1750141532630,1.13686557,658.51,658.45,1.074]
[1750141533833,1.13686557,658.52,658.45,1.074]
[1750141534632,1.13686557,658.51,658.45,1.074]
[1750141537536,1.13686557,658.5,658.45,1.074]
[1750141539234,0.26415066,659.08,658.45,1.074]
[1750141539235,1.13686557,658.51,658.45,1.074]
[1750141540037,1.13686557,658.52,658.45,1.074]
[1750141543635,1.13686557,658.51,658.45,1.074]
[1750141544441,1.13686557,658.52,658.45,1.074]
[1750141544634,1.13686557,658.51,658.45,1.074]
[1750141545040,1.13686557,658.53,658.45,1.074]
[1750141547635,1.13686557,658.53,658.39,1.268]
[1750141549840,1.13686557,658.52,658.39,1.268]
[1750141550340,1.13686557,658.52,658.25,0.892]
[1750141551138,1.13686557,658.52,658.26,0.909]
[1750141551941,1.13686557,658.51,658.26,0.909]
[1750141552137,1.13686557,658.51,658.27,1.21]
[1750141552837,1.51331723,658.68,658.27,1.21]
[1750141552838,1.13686557,658.52,658.27,1.21]
[1750141553442,1.13686557,658.51,658.27,1.21]
[1750141554846,1.13686557,658.49,658.27,1.21]
[1750141555546,1.6430886,658.48,658.27,1.21]
[1750141555746,1.13686557,658.48,658.27,1.21]
[1750141556546,1.13686557,658.47,658.27,1.21]
[1750141557043,1.13686557,658.49,658.27,1.21]
[1750141557650,1.13686557,658.48,658.27,1.21]
[1750141562952,1.13686557,658.47,658.27,1.21]
[1750141563552,1.13686557,658.56,658.27,1.21]
[1750141563757,1.13686557,658.44,658.27,1.21]
[1750141564952,1.13686557,658.41,658.27,1.21]
[1750141565153,1.13686557,658.53,658.27,1.21]
[1750141565859,1.13686557,658.61,658.27,1.21]
[1750141566056,1.13686557,658.62,658.27,1.21]
[1750141566359,1.13686557,658.63,658.27,1.21]
[1750141566859,1.13686557,658.64,658.27,1.21]
[1750141567254,1.13686557,658.64,658.26,2.083]
[1750141567755,0.50580754,658.81,658.26,2.083]
[1750141567756,1.13686557,658.63,658.26,2.083]
[1750141568460,1.13686557,658.64,658.26,2.083]
[1750141569064,1.13686557,658.64,658.27,1.276]
[1750141569263,1.13686557,658.62,658.27,1.276]
[1750141569465,1.13686557,658.63,658.27,1.276]
[1750141570163,1.13686557,658.63,658.28,1.215]
[1750141572565,1.13686557,658.64,658.28,1.215]
[1750141572869,1.13686557,658.63,658.28,1.215]
[1750141573469,1.13686557,658.64,658.28,1.215]
[1750141575665,1.13686557,658.63,658.28,1.215]
[1750141576470,1.13686557,658.62,658.29,1.102]
[1750141576670,1.13686557,658.6,658.29,1.102]
[1750141577570,1.13686557,658.59,658.29,1.102]
[1750141578573,1.13686557,658.6,658.29,1.102]
[1750141578774,1.13686557,658.62,658.29,1.102]
[1750141580572,1.13686557,658.57,658.29,1.102]
[1750141581371,1.13686557,658.55,658.29,1.102]
[1750141581871,0.50547097,658.71,658.29,1.102]
[1750141582077,1.13686557,658.81,658.29,1.102]
[1750141582670,1.13686557,658.66,658.29,1.102]
[1750141582874,1.13686557,658.65,658.29,1.102]
[1750141583075,1.13686557,658.66,658.29,1.102]
[1750141583476,1.13686557,658.65,658.29,1.102]
[1750141584173,1.13686557,658.59,658.29,1.102]
[1750141585074,1.13686557,658.6,658.29,1.102]
[1750141585272,1.13686557,658.59,658.29,1.102]
[1750141585477,1.13686557,658.6,658.29,1.102]
[1750141585978,1.13686557,658.59,658.3,0.841]
[1750141586276,1.13686557,658.6,658.3,0.841]
[1750141588076,1.13686557,658.59,658.3,0.841]
[1750141589273,1.13686557,658.6,658.3,0.841]
[1750141589777,1.13686557,658.54,658.3,0.841]
[1750141590178,0.50522795,658.65,658.3,0.841]
[1750141590372,1.13686557,658.7,658.3,0.841]
[1750141590576,1.13686557,658.71,658.3,0.841]
[1750141590977,1.13686557,658.72,658.3,0.841]
[1750141591276,1.13686557,658.74,658.3,0.841]
[1750141591478,1.13686557,658.75,658.31,1.227]
[1750141592179,1.13686557,658.76,658.31,1.227]
[1750141592673,1.13686557,658.8,658.31,1.227]
[1750141593374,1.13686557,658.78,658.31,1.227]
[1750141594076,1.13686557,658.75,658.31,1.227]
[1750141595374,1.13686557,658.76,658.31,1.227]
[1750141596781,1.13686557,658.75,658.31,1.227]
[1750141597079,1.13686557,658.75,658.32,0.847]
[1750141597783,1.13686557,658.78,658.32,0.847]
[1750141598376,1.13686557,658.79,658.32,0.847]
[1750141599479,1.13686557,658.8,658.32,0.847]
[1750141600379,1.13686557,658.79,658.32,0.847]
[1750141600683,1.13686557,658.73,658.32,0.847]
[1750141601582,1.13686557,658.74,658.32,0.847]
[1750141602477,0.50425852,658.85,658.32,0.847]
[1750141602478,1.13686557,658.76,658.32,0.847]
[1750141602779,1.13686557,658.75,658.32,0.847]
[1750141603178,1.13499256,658.75,658.32,0.847]
[1750141603575,1.13499256,658.76,658.32,0.847]
[1750141603780,1.13499256,658.74,658.32,0.847]
[1750141604581,1.13499256,658.75,658.32,0.847]
[1750141605582,1.13499256,658.75,658.33,0.935]
[1750141605778,1.13499256,658.77,658.33,0.935]
[1750141606478,1.13499256,658.78,658.33,0.935]
[1750141606682,1.13499256,658.77,658.33,0.935]
[1750141606882,1.13499256,658.78,658.33,0.935]
[1750141607182,1.13499256,658.77,658.33,0.935]
[1750141608783,1.13499256,658.78,658.33,0.935]
[1750141609081,1.13499256,658.77,658.33,0.935]
[1750141609584,1.13499256,658.78,658.33,0.935]
[1750141610184,1.13499256,658.77,658.33,0.935]
[1750141613985,1.13499256,658.79,658.33,0.935]
[1750141614187,1.13499256,658.81,658.33,0.935]
[1750141614786,1.13499256,658.83,658.33,0.935]
[1750141615086,1.13499256,658.82,658.33,0.935]
[1750141615988,1.13499256,658.87,658.33,0.935]
[1750141616283,1.13499256,658.86,658.33,0.935]
[1750141616587,0.26417472,658.99,658.33,0.935]
[1750141616588,1.13499256,658.87,658.33,0.935]
[1750141616788,1.13499256,658.87,658.34,0.921]
[1750141617287,1.13499256,658.88,658.34,0.921]
[1750141617488,1.13499256,658.86,658.34,0.921]
[1750141619991,1.13499256,658.85,658.34,0.921]